bitfinex/quotes_SOLUSD_20240822
["timestamp","ask_amount","ask_price","bid_price","bid_amount"]
[1724346259783,1.74915305,142.95,142.87,32.93]
[1724346261184,1.74915305,142.95,142.88,20.0]
[1724346261608,6.3086,142.96,142.88,20.0]
[1724346262421,1.74919823,142.95,142.88,20.0]
[1724346263696,6.3086,142.96,142.88,20.0]
[1724346264094,1.74906438,142.95,142.88,20.0]
[1724346264706,6.3086,142.96,142.88,20.0]
[1724346266919,1.74910572,142.95,142.88,20.0]
[1724346268017,6.3086,142.96,142.89,32.93]
[1724346268206,6.3086,142.96,142.89,33.05549]
[1724346268401,6.3086,142.96,142.91,13.17]
[1724346269113,6.3086,142.96,142.93,13.17]
[1724346270301,6.3086,142.96,142.89,0.12549]
[1724346270302,6.3086,142.96,142.95,13.17]
[1724346270506,15.6366,142.98,142.94,32.91]
[1724346270835,15.6366,142.98,142.92,32.91]
[1724346271124,15.6366,142.98,142.93,20.0]
[1724346272834,15.6366,142.98,142.94,32.91]
[1724346273012,6.1185,142.99,142.94,32.91]
[1724346275107,6.1185,142.99,142.93,20.0]
[1724346276302,1.74863228,142.98,142.93,20.0]
[1724346276513,1.74863228,142.98,142.91,0.12549]
[1724346276744,1.74863228,142.98,142.91,20.12549]
[1724346277709,1.74863228,142.98,142.91,0.12549]
[1724346278630,6.1185,142.99,142.91,0.12549]
[1724346278835,13.112,142.99,142.9,32.91]
[1724346279010,1.74879157,142.98,142.9,32.91]
[1724346279210,6.1185,142.99,142.91,20.0]
[1724346279611,1.74880091,142.98,142.91,20.0]
[1724346281527,15.8556,142.97,142.91,20.0]
[1724346281724,1.74894166,142.96,142.9,20.0]
[1724346281922,1.74894166,142.96,142.89,7.39563528]
[1724346283019,15.8556,142.97,142.9,32.91]
[1724346285328,6.5332,142.96,142.89,7.39805026]
[1724346286841,1.74897707,142.95,142.89,7.39805026]
[1724346287548,1.74906288,142.95,142.89,7.27256026]
[1724346288636,6.5332,142.96,142.89,7.27256026]
[1724346289024,8.28236041,142.96,142.89,7.27256026]
[1724346289227,1.74916359,142.95,142.89,7.27256026]
[1724346289815,6.5332,142.96,142.89,7.27256026]
[1724346291248,1.74924642,142.95,142.89,7.27256026]
[1724346292327,6.5332,142.96,142.89,7.27256026]
[1724346292525,6.5332,142.96,142.89,20.45256026]
[1724346292821,1.74924614,142.95,142.89,20.45256026]
[1724346293458,22.9884,142.94,142.87,13.18]
[1724346293629,1.74939306,142.93,142.87,13.18]
[1724346293956,8.74631022,142.92,142.86,7.27441553]
[1724346294129,6.3577,142.91,142.86,7.27441553]
[1724346294452,6.3577,142.91,142.85,13.18]
[1724346295228,1.74964044,142.9,142.85,13.18]
[1724346295423,8.10736325,142.91,142.85,13.18]
[1724346295733,6.3577,142.91,142.85,13.18]
[1724346295931,6.3577,142.91,142.87,13.18]
[1724346296140,6.3577,142.91,142.89,13.18]
[1724346297253,16.6307,142.94,142.89,13.18]
[1724346297551,16.6307,142.94,142.91,13.18]
[1724346297928,16.6307,142.94,142.84,7.27379385]
[1724346298132,16.6307,142.94,142.87,13.18]
[1724346298454,16.6307,142.94,142.86,32.95]
[1724346298764,16.6307,142.94,142.87,20.0]
[1724346300637,18.37999898,142.94,142.87,20.0]
[1724346301860,16.6307,142.94,142.88,32.95]
[1724346302361,18.37981558,142.94,142.88,32.95]
[1724346302738,18.37981558,142.94,142.86,32.95]
[1724346303955,6.4034,142.93,142.86,32.95]
[1724346304259,1.74948438,142.92,142.84,40.22379385]
[1724346304430,1.74948438,142.92,142.85,20.0]
[1724346305573,6.4034,142.93,142.85,20.0]
[1724346305736,6.4034,142.93,142.86,32.95]
[1724346307679,6.4034,142.93,142.88,32.95]
[1724346308641,6.4034,142.93,142.9,32.95]
[1724346308845,6.4034,142.93,142.89,45.12549]
[1724346309038,6.4034,142.93,142.88,32.95]
[1724346312043,6.321,143.0,142.92,32.95]
[1724346312365,1.74882609,142.99,142.92,32.95]
[1724346312538,16.374,142.98,142.9,32.95]
[1724346312738,18.12292624,142.98,142.9,32.95]
[1724346313237,16.374,142.98,142.92,32.95]
[1724346314840,1.74888561,142.97,142.9,32.95]
[1724346315173,6.165,142.97,142.9,32.95]
[1724346317674,1.74892787,142.96,142.88,32.95]
[1724346317851,1.74892787,142.96,142.89,20.0]
[1724346318260,1.7490506,142.95,142.89,20.0]
[1724346318740,1.7490506,142.95,142.88,13.18]
[1724346319962,6.124,142.94,142.88,13.18]
[1724346320267,17.28071652,142.93,142.86,20.45730283]
[1724346320452,1.74954517,142.92,142.86,20.45730283]
[1724346323048,6.5715,142.91,142.86,20.45730283]
[1724346324871,6.5715,142.91,142.86,13.18]
[1724346325187,1.74966677,142.9,142.86,13.18]
[1724346326176,1.74966677,142.9,142.84,13.18]
[1724346326573,1.74981127,142.89,142.84,13.18]
[1724346327471,1.74981067,142.9,142.84,13.18]
[1724346328962,6.5715,142.91,142.84,13.18]
[1724346329155,6.5715,142.91,142.88,13.18]
[1724346334181,6.5715,142.91,142.86,13.18]
[1724346334684,1.74955887,142.9,142.84,13.18]
[1724346335067,1.74985194,142.89,142.82,14.0350486]
[1724346335611,15.9961,142.88,142.82,14.0350486]
[1724346336093,6.1268,142.86,142.82,14.0350486]
[1724346336300,6.1268,142.86,142.82,0.8550486]
[1724346336463,1.75029214,142.85,142.82,0.8550486]
[1724346339766,6.1268,142.86,142.82,0.8550486]
[1724346340262,1.75029259,142.85,142.82,0.8550486]
[1724346341368,6.1268,142.86,142.82,0.8550486]
[1724346342369,1.75029456,142.85,142.82,0.8550486]
[1724346343667,6.1268,142.86,142.82,0.8550486]
[1724346343994,1.75031654,142.85,142.82,0.8550486]
[1724346345802,6.1268,142.86,142.82,0.8550486]
[1724346345973,7.8772859,142.86,142.82,0.8550486]
[1724346346174,1.75048707,142.85,142.82,0.8550486]
[1724346347295,6.1268,142.86,142.82,0.8550486]
[1724346347296,7.87728698,142.86,142.82,0.8550486]
[1724346347499,1.75048698,142.85,142.82,0.8550486]
[1724346347975,6.1268,142.86,142.82,0.8550486]
[1724346348498,1.75038981,142.85,142.82,0.8550486]
[1724346349109,1.75038981,142.85,142.77,7.2780369]
[1724346349110,6.0621,142.83,142.77,7.2780369]
[1724346349303,6.0621,142.83,142.74,32.98]
[1724346349808,6.0621,142.83,142.74,40.2568056]
[1724346350100,6.0621,142.83,142.76,32.98]
[1724346352091,6.0621,142.83,142.78,32.98]
[1724346356779,7.81256088,142.83,142.78,32.98]
[1724346357098,6.0621,142.83,142.78,32.98]
[1724346357307,7.81274151,142.83,142.78,32.98]
[1724346357477,1.75064256,142.82,142.76,32.98]
[1724346359191,6.0621,142.83,142.76,32.98]
[1724346360295,6.0621,142.83,142.78,32.98]
[1724346360505,6.0621,142.83,142.8,13.19]
[1724346361396,6.0621,142.83,142.74,27.27035063]
[1724346361397,1.7505596,142.82,142.78,13.19]
[1724346362018,6.0621,142.83,142.78,13.19]
[1724346364922,1.75059803,142.82,142.78,13.19]
[1724346365229,1.75059803,142.82,142.75,13.19]
[1724346365720,6.0621,142.83,142.75,13.19]
[1724346366803,6.0621,142.83,142.77,13.19]
[1724346369604,6.0621,142.83,142.74,7.27035063]
[1724346369605,6.0621,142.83,142.79,13.19]
[1724346370319,6.0621,142.83,142.81,13.19]
[1724346371922,22.1579,142.89,142.81,13.19]
[1724346372103,22.1579,142.89,142.83,13.19]
[1724346373115,22.1579,142.89,142.85,13.19]
[1724346374008,1.74999047,142.88,142.83,13.19]
[1724346374218,22.1579,142.89,142.81,13.19]
[1724346374512,22.1579,142.89,142.83,13.19]
[1724346374825,23.90801718,142.89,142.83,13.19]
[1724346376009,22.1579,142.89,142.83,13.19]
[1724346376213,22.1579,142.89,142.85,13.19]
[1724346376850,22.1579,142.89,142.83,13.19]
[1724346377024,1.7499584,142.88,142.83,13.19]
[1724346378000,1.7499584,142.88,142.77,15.4466]
[1724346378230,1.7499584,142.88,142.81,13.19]
[1724346380823,22.1579,142.89,142.83,13.19]
[1724346381217,22.1579,142.89,142.85,13.19]
[1724346381532,22.1579,142.89,142.84,13.19]
[1724346382531,22.1579,142.89,142.83,32.96]
[1724346388313,22.1579,142.89,142.82,32.96]
[1724346393018,1.74997966,142.88,142.82,32.96]
[1724346393630,22.1579,142.89,142.82,32.96]
[1724346394420,22.1579,142.89,142.84,32.96]
[1724346394625,22.1579,142.89,142.86,32.96]
[1724346394828,6.5228,142.89,142.86,32.96]
[1724346396417,15.2967,142.92,142.88,32.96]
[1724346397419,15.2967,142.92,142.86,32.96]
[1724346397829,15.2967,142.92,142.88,32.96]
[1724346398231,6.5059,142.93,142.9,32.96]
[1724346398520,6.5059,142.93,142.92,32.96]
[1724346398927,6.5059,142.93,142.9,32.96]
[1724346402047,16.278,142.95,142.9,32.96]
[1724346402429,16.278,142.95,142.91,13.17]
[1724346402942,18.02704537,142.95,142.91,13.17]
[1724346403736,16.278,142.95,142.91,13.17]
[1724346404622,16.278,142.95,142.93,13.17]
[1724346404826,6.252,142.96,142.93,13.17]
[1724346405728,6.252,142.96,142.95,13.17]
[1724346406249,16.4606,142.99,142.95,13.17]
[1724346406465,16.4606,142.99,142.95,32.91]
[1724346407531,16.4606,142.99,142.93,32.91]
[1724346409747,1.74868213,142.98,142.93,32.91]
[1724346410527,16.4606,142.99,142.93,32.91]
[1724346411121,1.74869633,142.98,142.93,32.91]
[1724346413930,16.4606,142.99,142.91,32.91]
[1724346415451,1.74879345,142.98,142.91,32.91]
[1724346416152,16.4606,142.99,142.91,32.91]
[1724346417864,16.4606,142.99,142.95,32.91]
[1724346418062,6.0364,143.0,142.97,32.91]
[1724346418457,6.0364,143.0,142.99,32.91]
[1724346418666,15.9776,143.03,142.99,32.91]
[1724346419249,17.72564325,143.03,142.97,32.91]
[1724346419763,15.9776,143.03,142.97,32.91]
[1724346422377,15.9776,143.03,142.99,32.91]
[1724346423346,17.72566539,143.03,142.97,32.91]
[1724346423673,17.72566539,143.03,142.95,32.91]
[1724346423842,17.72566539,143.03,142.97,32.91]
[1724346424045,15.9776,143.03,142.97,32.91]
[1724346424250,17.72582639,143.03,142.97,32.91]
[1724346425848,15.9776,143.03,142.97,32.91]
[1724346426471,1.74823785,143.02,142.95,32.91]
[1724346426647,15.9776,143.03,142.95,32.91]
[1724346426846,15.9776,143.03,142.97,32.91]
[1724346428673,1.74817357,143.02,142.97,13.16]
[1724346428972,1.74841699,143.01,142.95,13.16]
[1724346429873,1.74849516,143.02,142.95,13.16]
[1724346430051,1.7485055,143.01,142.95,13.16]
[1724346431075,1.74850574,143.02,142.95,13.16]
[1724346431274,6.1058,143.0,142.95,13.16]
[1724346431769,1.74865201,142.99,142.93,13.16]
[1724346432678,17.71875495,142.98,142.91,13.16]
[1724346433195,15.9701,142.98,142.93,13.16]
[1724346434178,15.9701,142.98,142.95,13.16]
[1724346434485,15.9701,142.98,142.97,13.16]
[1724346434657,6.1058,143.0,142.97,13.16]
[1724346435688,6.1058,143.0,142.95,13.16]
[1724346436170,7.85433931,143.0,142.95,13.16]
[1724346436684,7.85433931,143.0,142.93,13.16]
[1724346437855,14.84733931,143.0,142.91,13.16]
[1724346439365,15.3073,142.99,142.91,13.16]
[1724346439564,1.74889873,142.98,142.91,13.16]
[1724346441083,15.3073,142.99,142.93,13.16]
[1724346441873,15.3073,142.99,142.95,13.16]
[1724346442657,15.3073,142.99,142.9,20.0]
[1724346442658,15.3073,142.99,142.97,13.16]
[1724346443383,6.1058,143.0,142.97,13.16]
[1724346444788,21.7302,143.03,142.99,13.16]
[1724346446684,6.4229,143.03,143.01,13.16]
[1724346447060,6.4229,143.03,142.99,13.16]
[1724346451770,6.4229,143.03,142.97,13.16]
[1724346452088,8.17107716,143.03,142.97,13.16]
[1724346452278,8.17107716,143.03,142.95,13.16]
[1724346452675,16.0092,143.02,142.95,13.16]
[1724346452889,1.74841338,143.01,142.95,13.16]
[1724346453791,1.74841338,143.01,142.92,20.0]
[1724346453792,6.4229,143.03,142.99,13.16]
[1724346453995,6.4229,143.03,143.02,13.16]
[1724346455370,16.5252,143.06,143.02,13.16]
[1724346456585,16.5252,143.06,143.01,32.87]
[1724346456800,6.5909,143.07,143.01,32.87]
[1724346460890,6.5909,143.07,143.03,32.87]
[1724346461291,6.0909,143.07,143.03,32.87]
[1724346461702,6.0909,143.07,143.01,32.87]
[1724346462520,6.0909,143.07,142.95,29.15447333]
[1724346462521,6.0909,143.07,142.99,32.87]
[1724346462719,6.0909,143.07,143.0,20.0]
[1724346463309,6.0909,143.07,143.01,32.87]
[1724346466020,6.0909,143.07,143.0,20.0]
[1724346466536,6.0909,143.07,142.99,32.87]
[1724346467820,6.0909,143.07,143.01,32.87]
[1724346468918,6.0909,143.07,143.03,32.87]
[1724346470856,16.2903,143.09,143.05,32.87]
[1724346473720,6.4678,143.11,143.05,32.87]
[1724346475561,6.4678,143.11,143.07,32.87]
[1724346477144,16.3084,143.13,143.07,32.87]
[1724346477555,6.4054,143.15,143.09,32.87]
[1724346481726,6.4054,143.15,143.1,45.12549]
[1724346481994,6.4054,143.15,143.11,32.87]
[1724346482261,6.4054,143.15,143.1,45.12549]
[1724346482429,6.4054,143.15,143.11,13.13]
[1724346482857,6.4054,143.15,143.09,13.13]
[1724346484954,6.4054,143.15,143.11,13.13]
[1724346490476,6.4054,143.15,143.08,52.64549]
[1724346490477,6.4054,143.15,143.13,13.13]
[1724346490997,6.4054,143.15,143.11,13.13]
[1724346491280,6.4054,143.15,143.09,13.13]
[1724346492898,26.521,143.15,143.04,20.0]
[1724346493054,15.0989,143.13,143.06,13.13]
[1724346493261,15.0989,143.13,143.08,13.13]
[1724346493597,15.0989,143.13,143.1,13.13]
[1724346493800,6.4054,143.15,143.1,13.13]
[1724346496761,0.8550486,143.18,143.14,13.13]
[1724346496762,7.5076486,143.18,143.14,13.13]
[1724346496966,7.5076486,143.18,143.17,13.13]
[1724346497400,0.8550486,143.18,143.17,13.13]
[1724346498474,0.8550486,143.18,143.15,32.81]
[1724346500568,0.8550486,143.18,143.14,0.12549]
[1724346500789,0.8550486,143.18,143.14,65.12549]
[1724346501489,0.8550486,143.18,143.15,32.81]
[1724346510704,0.8550486,143.18,143.14,65.12549]
[1724346511089,0.8550486,143.18,143.14,97.93549]
[1724346512509,0.8550486,143.18,143.16,32.81]
[1724346518193,0.8550486,143.18,143.17,45.25098]
[1724346518601,0.8550486,143.18,143.17,65.25098]
[1724346520580,0.8550486,143.18,143.17,78.37098]
[1724346523494,0.8550486,143.18,143.17,78.24549]
[1724346523711,0.8550486,143.18,143.17,33.12]
[1724346524680,0.8550486,143.18,143.15,13.12]
[1724346524916,0.8550486,143.18,143.16,45.12549]
[1724346525199,0.8550486,143.18,143.15,13.12]
[1724346525613,0.8550486,143.18,143.17,13.12]
[1724346526609,0.8550486,143.18,143.17,13.24549]
[1724346526811,0.8550486,143.18,143.17,58.24549]
[1724346528835,0.8550486,143.18,143.17,13.12]
[1724346530647,0.8550486,143.18,143.15,13.12]
[1724346533111,0.8550486,143.18,143.17,13.12]
[1724346537739,0.8550486,143.18,143.17,58.12]
[1724346538034,0.8550486,143.18,143.17,58.24549]
[1724346543335,0.3550486,143.18,143.17,58.24549]
[1724346543531,0.3550486,143.18,143.17,13.12]
[1724346548958,0.3550486,143.18,143.15,13.12]
[1724346549145,0.3550486,143.18,143.16,45.12549]
[1724346552970,0.3550486,143.18,143.17,13.12]
[1724346553867,0.3550486,143.18,143.17,58.24549]
[1724346554634,0.3550486,143.18,143.17,78.37098]
[1724346558655,0.3550486,143.18,143.17,78.24549]
[1724346558952,0.3550486,143.18,143.17,33.12]
[1724346559157,0.3550486,143.18,143.17,20.0]
[1724346559355,0.3550486,143.18,143.16,20.0]
[1724346567287,0.3550486,143.18,143.15,13.24549]
[1724346567594,0.3550486,143.18,143.14,7.28423347]
[1724346567883,0.3550486,143.18,143.11,13.12]
[1724346568894,0.3550486,143.18,143.15,13.12]
[1724346573207,0.3550486,143.18,143.17,13.12]
[1724346578318,0.3550486,143.18,143.16,45.0]
[1724346580579,0.3550486,143.18,143.17,13.12]
[1724346580903,0.3550486,143.18,143.16,45.0]
[1724346582812,0.3550486,143.18,143.17,13.12]
[1724346585622,0.3550486,143.18,143.16,45.0]
[1724346585913,0.3550486,143.18,143.15,13.12]
[1724346586216,0.3550486,143.18,143.16,20.0]
[1724346586790,0.3550486,143.18,143.15,13.12]
[1724346587095,0.3550486,143.18,143.13,13.12]
[1724346587507,6.5141,143.17,143.11,20.42145573]
[1724346587720,6.5141,143.17,143.12,20.0]
[1724346588920,8.26031835,143.17,143.11,7.30145573]
[1724346589112,6.5141,143.17,143.11,7.30145573]
[1724346589439,6.5141,143.17,143.09,13.12]
[1724346589731,6.5141,143.17,143.09,20.4235721]
[1724346590017,6.5141,143.17,143.11,13.12]
[1724346590223,6.5141,143.17,143.13,13.12]
[1724346590612,6.5141,143.17,143.15,13.12]
[1724346591226,0.3550486,143.18,143.15,13.12]
[1724346595016,0.3550486,143.18,143.16,0.12549]
[1724346596710,0.3550486,143.18,143.17,13.12]
[1724346598507,0.3550486,143.18,143.17,58.37098]
[1724346600697,0.3550486,143.18,143.15,13.12]
[1724346600900,0.3550486,143.18,143.16,65.25098]
[1724346601137,0.3550486,143.18,143.16,65.12549]
[1724346601308,0.3550486,143.18,143.16,20.0]
[1724346606622,0.3550486,143.18,143.17,58.24549]
[1724346607026,0.3550486,143.18,143.17,58.37098]
[1724346607648,0.3550486,143.18,143.17,58.24549]
[1724346608037,0.3550486,143.18,143.16,20.0]
[1724346609456,0.3550486,143.18,143.11,23.86956411]
[1724346609653,0.3550486,143.18,143.11,20.42096411]
[1724346609835,0.3550486,143.18,143.13,13.12]
[1724346610653,0.3550486,143.18,143.15,13.12]
[1724346613766,0.3550486,143.18,143.12,7.30099746]
[1724346613969,0.3550486,143.18,143.13,33.12]
[1724346616341,0.3550486,143.18,143.15,13.12]
[1724346621178,0.3550486,143.18,143.16,0.12549]
[1724346623501,0.3550486,143.18,143.17,13.12]
[1724346624167,0.3550486,143.18,143.17,78.37098]
[1724346624813,6.1337,143.24,143.18,20.0]
[1724346625110,6.1337,143.24,143.22,13.12]
[1724346625609,23.0508,143.29,143.23,0.12549]
[1724346625813,23.0508,143.29,143.24,13.12]
[1724346626413,6.4559,143.29,143.26,13.12]
[1724346626600,6.4559,143.29,143.28,13.12]
[1724346627021,0.8550486,143.32,143.28,13.12]
[1724346627718,0.8550486,143.32,143.26,13.12]
[1724346628617,0.8550486,143.32,143.25,0.12549]
[1724346628823,0.8550486,143.32,143.25,20.12549]
[1724346631026,2.59974123,143.32,143.25,20.12549]
[1724346631204,0.8550486,143.32,143.24,52.76]
[1724346634536,0.8550486,143.32,143.24,72.76]
[1724346634724,0.8550486,143.32,143.25,45.25098]
[1724346635111,0.8550486,143.32,143.26,32.76]
[1724346635920,2.59961938,143.32,143.25,45.25098]
[1724346636117,0.8550486,143.32,143.25,45.12549]
[1724346636529,0.8550486,143.32,143.24,52.76]
[1724346637032,0.8550486,143.32,143.26,32.76]
[1724346639529,0.8550486,143.32,143.25,45.12549]
[1724346640855,0.8550486,143.32,143.26,32.76]
[1724346641248,0.8550486,143.32,143.3,32.76]
[1724346642725,0.8550486,143.32,143.31,45.0]
[1724346642955,0.8550486,143.32,143.31,45.12549]
[1724346643576,6.5323,143.4,143.31,65.25098]
[1724346643864,6.5323,143.4,143.33,32.76]
[1724346644033,6.5323,143.4,143.32,20.25098]
[1724346644230,13.5059,143.4,143.32,20.12549]
[1724346644866,6.9742,143.39,143.32,20.0]
[1724346645349,1.74395407,143.38,143.32,20.0]
[1724346645549,6.9742,143.39,143.32,20.0]
[1724346646874,13.5058,143.4,143.32,20.0]
[1724346647862,13.5058,143.4,143.33,45.12549]
[1724346648547,6.974,143.39,143.32,20.0]
[1724346649275,8.71786626,143.39,143.32,20.0]
[1724346650049,1.74386626,143.39,143.32,20.0]
[1724346650588,6.974,143.39,143.32,20.0]
[1724346651086,13.5058,143.4,143.32,20.0]
[1724346651275,13.5058,143.4,143.33,45.12549]
[1724346652962,6.5323,143.4,143.33,77.88549]
[1724346653155,6.5323,143.4,143.34,0.12549]
[1724346653357,1.74351342,143.39,143.33,77.88549]
[1724346653572,15.24957702,143.4,143.33,45.12549]
[1724346654859,13.5059,143.4,143.33,77.88549]
[1724346656065,6.974,143.39,143.33,45.12549]
[1724346657184,13.5059,143.4,143.33,45.12549]
[1724346659780,6.9741,143.39,143.33,45.12549]
[1724346660308,6.9745,143.38,143.32,20.0]
[1724346661198,20.064,143.39,143.32,20.0]
[1724346662292,6.9746,143.38,143.32,20.0]
[1724346662718,6.5323,143.4,143.32,33.09]
[1724346662901,6.5323,143.4,143.33,45.25098]
[1724346663224,6.5323,143.4,143.34,13.09]
[1724346663423,6.9731,143.41,143.35,45.12549]
[1724346665999,6.9726,143.42,143.35,45.12549]
[1724346666587,6.9726,143.42,143.36,0.12549]
[1724346668136,6.9726,143.42,143.36,16.17519]
[1724346668293,6.9726,143.42,143.37,0.12549]
[1724346668489,6.5424,143.43,143.37,0.12549]
[1724346668793,6.9733,143.41,143.37,0.12549]
[1724346669223,39.2624,143.43,143.35,45.0]
[1724346669522,6.973,143.41,143.36,0.12549]
[1724346669823,6.9726,143.42,143.36,0.12549]
[1724346670025,13.5145,143.43,143.36,0.12549]
[1724346670212,13.5145,143.43,143.36,20.25098]
[1724346670528,13.5146,143.43,143.37,45.0]
[1724346672621,6.9722,143.43,143.37,45.0]
[1724346677023,6.9722,143.43,143.38,0.12549]
[1724346677227,6.2402,143.46,143.38,16.31178]
[1724346677531,6.9714,143.45,143.39,45.0]
[1724346682099,6.9714,143.45,143.4,0.12549]
[1724346683224,6.9716,143.44,143.4,0.12549]
[1724346683524,6.9712,143.45,143.39,45.0]
[1724346684520,8.71445975,143.44,143.39,45.0]
[1724346684833,33.5750486,143.47,143.38,16.18629]
[1724346684834,1.7430956,143.46,143.38,16.18629]
[1724346685004,6.9714,143.45,143.38,16.18629]
[1724346685200,8.71449993,143.45,143.38,16.18629]
[1724346686124,6.9714,143.45,143.38,16.18629]
[1724346686322,8.71449738,143.45,143.38,16.18629]
[1724346686520,21.80449738,143.45,143.38,16.18629]
[1724346687025,14.83309738,143.45,143.38,16.18629]
[1724346687226,13.09,143.43,143.38,16.0608]
[1724346690222,6.972,143.44,143.38,16.0608]
[1724346691015,20.0612,143.45,143.38,16.0608]
[1724346691219,6.9712,143.45,143.38,16.0608]
[1724346693014,6.9712,143.45,143.39,13.09]
[1724346693437,6.9706,143.46,143.39,13.09]
[1724346694632,6.9711,143.45,143.39,13.09]
[1724346694842,6.9717,143.44,143.38,16.0608]
[1724346695018,8.71535243,143.43,143.38,16.0608]
[1724346696226,6.9715,143.45,143.38,16.0608]
[1724346696735,14.83319829,143.46,143.39,0.12549]
[1724346696736,6.9706,143.46,143.39,0.12549]
[1724346697139,6.9706,143.46,143.39,13.21549]
[1724346697451,6.9706,143.46,143.39,58.21549]
[1724346698545,21.80405761,143.45,143.39,0.12549]
[1724346698753,21.80405761,143.45,143.38,16.0608]
[1724346698943,13.9450486,143.47,143.38,29.1508]
[1724346699130,6.9709,143.46,143.39,45.12549]
[1724346699526,8.71391986,143.46,143.39,0.12549]
[1724346699946,6.9709,143.46,143.39,0.12549]
[1724346700139,15.160108,143.47,143.39,0.12549]
[1724346700140,0.8550486,143.47,143.4,13.09]
[1724346700444,7.8252486,143.47,143.4,13.09]
[1724346700949,6.9706,143.46,143.4,13.09]
[1724346701149,6.9706,143.46,143.39,0.25098]
[1724346701444,14.83299839,143.45,143.39,20.0]
[1724346701628,13.09,143.45,143.39,20.0]
[1724346702037,20.9151486,143.47,143.39,20.0]
[1724346702344,20.0612,143.45,143.38,80.56909]
[1724346702553,20.0612,143.45,143.38,22.3536]
[1724346702733,20.0612,143.45,143.38,16.0608]
[1724346703253,1.74324187,143.44,143.38,16.0608]
[1724346703427,6.9716,143.44,143.38,16.0608]
[1724346703630,20.0616,143.44,143.38,16.0608]
[1724346705847,13.09,143.44,143.38,16.0608]
[1724346706045,13.09,143.46,143.38,16.0608]
[1724346706351,20.0606,143.46,143.38,29.1508]
[1724346706544,6.9711,143.45,143.38,29.1508]
[1724346707845,8.71469793,143.44,143.38,16.0608]
[1724346708377,6.9716,143.44,143.38,16.0608]
[1724346709754,13.09,143.42,143.35,22.4176]
[1724346709963,1.74342903,143.41,143.35,22.4176]
[1724346710351,20.0627,143.42,143.35,22.4176]
[1724346711754,20.0619,143.44,143.35,35.5076]
[1724346711964,6.9721,143.43,143.36,0.12549]
[1724346712555,6.9714,143.45,143.37,13.09]
[1724346712760,6.9714,143.45,143.38,45.12549]
[1724346713088,7.8251486,143.47,143.39,13.09]
[1724346713375,0.8550486,143.47,143.41,13.09]
[1724346717149,0.8550486,143.47,143.42,0.12549]
[1724346717353,0.8550486,143.47,143.43,13.09]
[1724346719965,0.8550486,143.47,143.42,0.12549]
[1724346720279,0.8550486,143.47,143.42,45.12549]
[1724346731592,0.8550486,143.47,143.42,45.0]
[1724346731793,0.8550486,143.47,143.41,13.09]
[1724346732687,0.8550486,143.47,143.4,15.339]
[1724346732878,0.8550486,143.47,143.41,20.0]
[1724346733871,13.9450486,143.47,143.41,20.0]
[1724346734187,20.9151486,143.47,143.4,15.339]
[1724346734996,8.71347064,143.46,143.39,0.12549]
[1724346735194,20.2323486,143.47,143.39,65.12549]
[1724346735195,1.74301215,143.45,143.39,65.12549]
[1724346735395,1.74301215,143.45,143.39,20.0]
[1724346735698,1.74311153,143.44,143.36,36.91068297]
[1724346735995,1.74311153,143.44,143.36,29.6225]
[1724346736775,1.74311153,143.44,143.37,45.0]
[1724346737195,20.0611,143.45,143.37,45.0]